[Event "*** Titled Tuesday 3|2 Blitz"]
[Site "Chess.com"]
[Date "2016.03.01"]
[Round "5"]
[White "ftorodent"]
[Black "Aygehovit1992"]
[Result "0-1"]
[WhiteElo "2323"]
[BlackElo "2417"]
[TimeControl "180+2"]
[EndTime "12:34:44 PST"]
[Termination "Aygehovit1992 won on time"]

1. d4 {[%clk 0:03:01.9]} 1... g6 {[%clk 0:02:59.6]} 2. c4 {[%clk 0:03:02.3]}
2... Bg7 {[%clk 0:03:01]} 3. e4 {[%clk 0:03:03.9]} 3... d6 {[%clk 0:03:02.2]} 4.
Nc3 {[%clk 0:03:04.9]} 4... e5 {[%clk 0:03:03.2]} 5. dxe5 {[%clk 0:02:53.3]}
5... dxe5 {[%clk 0:03:04.2]} 6. Qxd8+ {[%clk 0:02:53.3]} 6... Kxd8 {[%clk
0:03:05.4]} 7. Be3 {[%clk 0:02:54.9]} 7... c6 {[%clk 0:03:04.4]} 8. O-O-O+
{[%clk 0:02:45.8]} 8... Kc7 {[%clk 0:03:05.5]} 9. Bc5 {[%clk 0:02:46.6]} 9... b6
{[%clk 0:03:06.6]} 10. Bd6+ {[%clk 0:02:46.1]} 10... Kb7 {[%clk 0:03:07.9]} 11.
f4 {[%clk 0:02:29.6]} 11... exf4 {[%clk 0:03:06]} 12. Bxf4 {[%clk 0:02:29.6]}
12... Ne7 {[%clk 0:03:02.7]} 13. Nf3 {[%clk 0:02:26.7]} 13... Na6 {[%clk
0:02:56.8]} 14. Kc2 {[%clk 0:01:55.9]} 14... h6 {[%clk 0:02:41.8]} 15. a3 {[%clk
0:01:47.4]} 15... g5 {[%clk 0:02:42.4]} 16. Bd6 {[%clk 0:01:38.8]} 16... Ng6
{[%clk 0:02:41.5]} 17. h4 {[%clk 0:01:18.7]} 17... g4 {[%clk 0:02:41.4]} 18. Nd4
{[%clk 0:01:19.5]} 18... Bxd4 {[%clk 0:02:25.7]} 19. Rxd4 {[%clk 0:01:19.5]}
19... h5 {[%clk 0:02:27.4]} 20. b4 {[%clk 0:01:08]} 20... Be6 {[%clk 0:02:27.8]}
21. c5 {[%clk 0:01:06.4]} 21... b5 {[%clk 0:02:24.6]} 22. e5 {[%clk 0:00:58.3]}
22... Nc7 {[%clk 0:02:25]} 23. Bd3 {[%clk 0:00:59.2]} 23... a5 {[%clk
0:02:17.2]} 24. Kb2 {[%clk 0:00:43.3]} 24... g3 {[%clk 0:02:07.2]} 25. Rf1
{[%clk 0:00:40.4]} 25... axb4 {[%clk 0:02:06.8]} 26. axb4 {[%clk 0:00:41]} 26...
Rhg8 {[%clk 0:01:22.2]} 27. Rf3 {[%clk 0:00:37.8]} 27... Nf8 {[%clk 0:01:20.5]}
28. Bf5 {[%clk 0:00:33]} 28... Rg7 {[%clk 0:01:11.2]} 29. Rdd3 {[%clk
0:00:24.7]} 29... Bxf5 {[%clk 0:01:10.9]} 30. Rxf5 {[%clk 0:00:25.6]} 30... Nfe6
{[%clk 0:01:12.3]} 31. Rxh5 {[%clk 0:00:26.6]} 31... Rg4 {[%clk 0:01:09.1]} 32.
Kb3 {[%clk 0:00:23.5]} 32... Nd4+ {[%clk 0:01:08.6]} 33. Kb2 {[%clk 0:00:23.4]}
33... Nde6 {[%clk 0:01:04.8]} 34. Rf5 {[%clk 0:00:21.5]} 34... Rxb4+ {[%clk
0:01:04.5]} 35. Kc2 {[%clk 0:00:21.9]} 35... Rc4 {[%clk 0:01:01.4]} 36. Kb3
{[%clk 0:00:16.4]} 36... Rd4 {[%clk 0:00:48.1]} 37. Rxg3 {[%clk 0:00:15.6]}
37... b4 {[%clk 0:00:49.5]} 38. Na4 {[%clk 0:00:14.7]} 38... Rd1 {[%clk
0:00:47.7]} 39. Rxf7 {[%clk 0:00:14.7]} 39... Rb1+ {[%clk 0:00:48.7]} 40. Kc2
{[%clk 0:00:15.5]} 40... Ra1 {[%clk 0:00:46.5]} 41. Nb2 {[%clk 0:00:13.7]} 41...
R8a3 {[%clk 0:00:38.9]} 42. Rgg7 {[%clk 0:00:12.2]} 42... Rc3+ {[%clk
0:00:38.4]} 43. Kd2 {[%clk 0:00:13.2]} 43... Nxg7 {[%clk 0:00:39.6]} 44. Rxc7+
{[%clk 0:00:13.2]} 44... Ka6 {[%clk 0:00:40.7]} 45. Rxg7 {[%clk 0:00:14.1]}
45... Ra2 {[%clk 0:00:42]} 46. e6 {[%clk 0:00:13.7]} 46... Rxb2+ {[%clk
0:00:43]} 47. Kd1 {[%clk 0:00:15.1]} 47... Ra3 {[%clk 0:00:32.7]} 48. Kc1 {[%clk
0:00:16.2]} 48... Raa2 {[%clk 0:00:34]} 49. e7 {[%clk 0:00:11.6]} 49... b3
{[%clk 0:00:34.7]} 50. Be5 {[%clk 0:00:05.6]} 50... Re2 {[%clk 0:00:35.6]} 51.
Bb2 {[%clk 0:00:04.4]} 51... Raxb2 {[%clk 0:00:34]} 0-1

[Event "*** Titled Tuesday 3|2 Blitz"]
[Site "Chess.com"]
[Date "2016.03.01"]
[Round "5"]
[White "Dlugy"]
[Black "viditchess"]
[Result "1/2-1/2"]
[WhiteElo "2603"]
[BlackElo "2465"]
[TimeControl "180+2"]
[EndTime "12:34:48 PST"]
[Termination "Game drawn by repetition"]

1. d4 {[%clk 0:03:01.9]} 1... Nf6 {[%clk 0:03:00.4]} 2. Bf4 {[%clk 0:03:03.4]}
2... c5 {[%clk 0:02:59.1]} 3. d5 {[%clk 0:03:04.2]} 3... Qb6 {[%clk 0:02:57.9]}
4. Nc3 {[%clk 0:03:03.9]} 4... Qxb2 {[%clk 0:02:58.3]} 5. Bd2 {[%clk 0:03:04.5]}
5... Qb6 {[%clk 0:02:56.8]} 6. e4 {[%clk 0:03:05.6]} 6... e5 {[%clk 0:02:56.5]}
7. Rb1 {[%clk 0:02:56.8]} 7... Qd8 {[%clk 0:02:55.1]} 8. f4 {[%clk 0:02:57]}
8... d6 {[%clk 0:02:54.3]} 9. fxe5 {[%clk 0:02:57.7]} 9... dxe5 {[%clk
0:02:55.4]} 10. Nf3 {[%clk 0:02:59.4]} 10... Nbd7 {[%clk 0:02:52.2]} 11. a4
{[%clk 0:02:55.6]} 11... Bd6 {[%clk 0:02:47.5]} 12. Bd3 {[%clk 0:02:53.9]} 12...
O-O {[%clk 0:02:47.7]} 13. O-O {[%clk 0:02:54.2]} 13... a6 {[%clk 0:02:44.4]}
14. Kh1 {[%clk 0:02:54.9]} 14... Qc7 {[%clk 0:02:24.9]} 15. Qe2 {[%clk
0:02:54.4]} 15... b6 {[%clk 0:02:22.1]} 16. Bg5 {[%clk 0:02:55]} 16... Bb7
{[%clk 0:02:17.8]} 17. Nd1 {[%clk 0:02:49.5]} 17... Nh5 {[%clk 0:02:05.9]} 18.
Ne3 {[%clk 0:02:19.4]} 18... Nf4 {[%clk 0:02:02]} 19. Qd2 {[%clk 0:02:15.6]}
19... f6 {[%clk 0:01:54.7]} 20. Bh4 {[%clk 0:02:12.9]} 20... g6 {[%clk
0:01:48.5]} 21. Nc4 {[%clk 0:02:05.8]} 21... Rab8 {[%clk 0:01:26.5]} 22. Rb2
{[%clk 0:02:03.3]} 22... Bc8 {[%clk 0:01:17.3]} 23. Rfb1 {[%clk 0:02:04.3]}
23... Rf7 {[%clk 0:01:11.5]} 24. Bg3 {[%clk 0:01:57.6]} 24... Nh5 {[%clk
0:01:03.1]} 25. Bf2 {[%clk 0:01:55.9]} 25... Nf4 {[%clk 0:01:01.3]} 26. Bf1
{[%clk 0:01:56.7]} 26... Kg7 {[%clk 0:00:49.5]} 27. g3 {[%clk 0:01:57.2]} 27...
Nh5 {[%clk 0:00:49.8]} 28. Bh3 {[%clk 0:01:58.2]} 28... b5 {[%clk 0:00:37.5]}
29. axb5 {[%clk 0:01:58.6]} 29... axb5 {[%clk 0:00:38.9]} 30. Nxd6 {[%clk
0:01:55.6]} 30... Qxd6 {[%clk 0:00:40.8]} 31. Rxb5 {[%clk 0:01:57]} 31... Rxb5
{[%clk 0:00:42.5]} 32. Rxb5 {[%clk 0:01:58.3]} 32... Qa6 {[%clk 0:00:39.8]} 33.
Rb1 {[%clk 0:01:54.1]} 33... Nb6 {[%clk 0:00:36.3]} 34. Bf1 {[%clk 0:01:53]}
34... Qa3 {[%clk 0:00:31.9]} 35. Qd3 {[%clk 0:01:48.7]} 35... Nc4 {[%clk
0:00:26.5]} 36. Rb3 {[%clk 0:01:43.9]} 36... Qc1 {[%clk 0:00:24.1]} 37. Qxc4
{[%clk 0:01:43.4]} 37... Ra7 {[%clk 0:00:24.3]} 38. Be3 {[%clk 0:01:29.4]} 38...
Qa1 {[%clk 0:00:24.7]} 39. Kg2 {[%clk 0:01:23.2]} 39... Ba6 {[%clk 0:00:25]} 40.
Rb5 {[%clk 0:01:04.9]} 40... Bxb5 {[%clk 0:00:20.3]} 41. Qxb5 {[%clk 0:01:06.1]}
41... Ra2 {[%clk 0:00:21.1]} 42. Qd7+ {[%clk 0:00:57.2]} 42... Kg8 {[%clk
0:00:21.9]} 43. Qc8+ {[%clk 0:00:58.3]} 43... Kg7 {[%clk 0:00:23.1]} 44. Qc7+
{[%clk 0:00:58.4]} 44... Kg8 {[%clk 0:00:24.3]} 45. Qxc5 {[%clk 0:00:59.6]}
45... Qd1 {[%clk 0:00:23.5]} 46. Qc8+ {[%clk 0:00:42.5]} 46... Kg7 {[%clk
0:00:24.8]} 47. Qd7+ {[%clk 0:00:37.2]} 47... Kg8 {[%clk 0:00:26.2]} 48. Nd2
{[%clk 0:00:27.1]} 48... Rxc2 {[%clk 0:00:26.4]} 49. Qd8+ {[%clk 0:00:27.8]}
49... Kg7 {[%clk 0:00:26.6]} 50. Qa5 {[%clk 0:00:29.2]} 50... Qe1 {[%clk
0:00:24.5]} 51. Bd3 {[%clk 0:00:22.6]} 51... Rb2 {[%clk 0:00:18.2]} 52. Qa7+
{[%clk 0:00:20.7]} 52... Kg8 {[%clk 0:00:19.3]} 53. Qa8+ {[%clk 0:00:21.3]}
53... Kg7 {[%clk 0:00:20.6]} 54. Qa7+ {[%clk 0:00:22.6]} 54... Kg8 {[%clk
0:00:22]} 55. Qa8+ {[%clk 0:00:17.9]} 55... Kg7 {[%clk 0:00:23.3]} 56. Qa7+
{[%clk 0:00:19.5]} 56... Kg8 {[%clk 0:00:24.7]} 57. Qa8+ {[%clk 0:00:20.8]}
57... Kg7 {[%clk 0:00:26.2]} 58. Qa7+ {[%clk 0:00:22]} 1/2-1/2

[Event "*** Titled Tuesday 3|2 Blitz"]
[Site "Chess.com"]
[Date "2016.03.01"]
[Round "5"]
[White "Mornar1951"]
[Black "Izoria123"]
[Result "1/2-1/2"]
[WhiteElo "2589"]
[BlackElo "2554"]
[TimeControl "180+2"]
[EndTime "12:35:09 PST"]
[Termination "Game drawn by repetition"]

1. Nf3 {[%clk 0:03:01.9]} 1... g6 {[%clk 0:02:58.4]} 2. e4 {[%clk 0:03:00.9]}
2... d6 {[%clk 0:02:58.2]} 3. d4 {[%clk 0:03:01.8]} 3... Nf6 {[%clk 0:02:59.1]}
4. Nc3 {[%clk 0:03:00.2]} 4... Bg7 {[%clk 0:03:00.3]} 5. Be2 {[%clk 0:02:58.1]}
5... O-O {[%clk 0:03:01]} 6. O-O {[%clk 0:02:59.2]} 6... Bg4 {[%clk 0:03:00.3]}
7. Ng5 {[%clk 0:02:57.2]} 7... Bxe2 {[%clk 0:02:58.6]} 8. Qxe2 {[%clk
0:02:59.1]} 8... Nc6 {[%clk 0:02:58.1]} 9. Nf3 {[%clk 0:02:59.3]} 9... e5 {[%clk
0:02:57.1]} 10. dxe5 {[%clk 0:02:59.5]} 10... Nxe5 {[%clk 0:02:58.3]} 11. Nxe5
{[%clk 0:02:58.5]} 11... dxe5 {[%clk 0:02:59.9]} 12. Bg5 {[%clk 0:02:58.1]}
12... c6 {[%clk 0:03:00.5]} 13. Rfd1 {[%clk 0:02:51.2]} 13... Qb6 {[%clk
0:02:54.2]} 14. Na4 {[%clk 0:02:47.7]} 14... Qb4 {[%clk 0:02:52]} 15. Bxf6
{[%clk 0:02:47.1]} 15... Bxf6 {[%clk 0:02:53.9]} 16. b3 {[%clk 0:02:44.7]} 16...
Rad8 {[%clk 0:02:49.7]} 17. g3 {[%clk 0:02:38.1]} 17... b5 {[%clk 0:02:44.1]}
18. c3 {[%clk 0:02:35.8]} 18... Qa3 {[%clk 0:02:20]} 19. Rxd8 {[%clk 0:02:26.1]}
19... Rxd8 {[%clk 0:02:09.7]} 20. Nb2 {[%clk 0:02:27]} 20... Qc5 {[%clk
0:02:05.4]} 21. Rc1 {[%clk 0:02:24.4]} 21... Bg5 {[%clk 0:02:05.4]} 22. Rc2
{[%clk 0:02:24.8]} 22... h5 {[%clk 0:01:59.7]} 23. h4 {[%clk 0:02:25.7]} 23...
Bh6 {[%clk 0:02:00.2]} 24. Kg2 {[%clk 0:02:22.6]} 24... a5 {[%clk 0:01:59.6]}
25. c4 {[%clk 0:02:10.2]} 25... b4 {[%clk 0:01:55.6]} 26. Nd3 {[%clk 0:02:05.4]}
26... Qd4 {[%clk 0:01:56.4]} 27. Ne1 {[%clk 0:02:06.5]} 27... f6 {[%clk
0:01:50.3]} 28. g4 {[%clk 0:02:01.7]} 28... Qd1 {[%clk 0:01:13.4]} 29. gxh5
{[%clk 0:01:52.4]} 29... gxh5 {[%clk 0:01:13.7]} 30. Kf3 {[%clk 0:01:36.8]}
30... Kf7 {[%clk 0:01:11.3]} 31. Qxd1 {[%clk 0:01:36.4]} 31... Rxd1 {[%clk
0:01:13.1]} 32. Ke2 {[%clk 0:01:37.3]} 32... Rd4 {[%clk 0:01:07.9]} 33. f3
{[%clk 0:01:33.2]} 33... Rd8 {[%clk 0:01:01.9]} 34. Nd3 {[%clk 0:01:27.9]} 34...
Rg8 {[%clk 0:01:02.8]} 35. Kf1 {[%clk 0:01:29]} 35... Rg3 {[%clk 0:00:57.9]} 36.
Kf2 {[%clk 0:01:19.4]} 36... Rh3 {[%clk 0:00:38.9]} 37. Kg2 {[%clk 0:01:20.5]}
37... Rxh4 {[%clk 0:00:40.3]} 38. c5 {[%clk 0:01:17.2]} 38... Bf4 {[%clk
0:00:39.8]} 39. Nxf4 {[%clk 0:01:16.2]} 39... Rxf4 {[%clk 0:00:41.7]} 40. Rd2
{[%clk 0:01:12.5]} 40... h4 {[%clk 0:00:40.7]} 41. Rd7+ {[%clk 0:01:10.7]} 41...
Kg6 {[%clk 0:00:41.2]} 42. Rd6 {[%clk 0:01:10.4]} 42... h3+ {[%clk 0:00:42.2]}
43. Kg3 {[%clk 0:01:08.9]} 43... h2 {[%clk 0:00:43.2]} 44. Kxh2 {[%clk
0:01:09.9]} 44... Rxf3 {[%clk 0:00:44.1]} 45. Rxc6 {[%clk 0:01:07.8]} 45... Rf2+
{[%clk 0:00:39.1]} 46. Kg3 {[%clk 0:01:03.1]} 46... Rxa2 {[%clk 0:00:40.5]} 47.
Ra6 {[%clk 0:01:03.7]} 47... Ra3 {[%clk 0:00:39.9]} 48. Kf2 {[%clk 0:01:02.5]}
48... Rxb3 {[%clk 0:00:38.2]} 49. Rxa5 {[%clk 0:01:03.5]} 49... Kg5 {[%clk
0:00:38.5]} 50. c6 {[%clk 0:01:02.9]} 50... Rc3 {[%clk 0:00:39.4]} 51. Rb5
{[%clk 0:01:04.1]} 51... Rxc6 {[%clk 0:00:37.7]} 52. Rxb4 {[%clk 0:01:03.6]}
52... Kf4 {[%clk 0:00:39.3]} 53. Ke2 {[%clk 0:01:04.9]} 53... Ra6 {[%clk
0:00:39.4]} 54. Kd2 {[%clk 0:01:04.9]} 54... Ra2+ {[%clk 0:00:37.2]} 55. Kd3
{[%clk 0:01:05.1]} 55... Ra3+ {[%clk 0:00:35.8]} 56. Kd2 {[%clk 0:01:04.6]}
56... Rf3 {[%clk 0:00:36.7]} 57. Ra4 {[%clk 0:01:02.9]} 57... Rf2+ {[%clk
0:00:33.9]} 58. Kd3 {[%clk 0:01:02.6]} 58... Rf1 {[%clk 0:00:34.5]} 59. Ra6
{[%clk 0:00:56.8]} 59... Rd1+ {[%clk 0:00:23.7]} 60. Ke2 {[%clk 0:00:56.2]}
60... Rb1 {[%clk 0:00:23.8]} 61. Rxf6+ {[%clk 0:00:56.8]} 61... Kxe4 {[%clk
0:00:25.1]} 62. Ra6 {[%clk 0:00:55.3]} 62... Rb2+ {[%clk 0:00:26]} 63. Ke1
{[%clk 0:00:54.6]} 63... Kf4 {[%clk 0:00:22.4]} 64. Ra4+ {[%clk 0:00:54.7]}
64... e4 {[%clk 0:00:23.8]} 65. Ra3 {[%clk 0:00:56]} 65... Rh2 {[%clk
0:00:23.3]} 66. Rb3 {[%clk 0:00:56.4]} 66... e3 {[%clk 0:00:24.1]} 67. Rb8
{[%clk 0:00:57.1]} 67... Kf3 {[%clk 0:00:25.8]} 68. Rf8+ {[%clk 0:00:57.5]}
68... Ke4 {[%clk 0:00:27.4]} 69. Re8+ {[%clk 0:00:58.6]} 69... Kf3 {[%clk
0:00:29.1]} 70. Rf8+ {[%clk 0:00:59.8]} 70... Ke4 {[%clk 0:00:30.8]} 71. Re8+
{[%clk 0:01:01.1]} 71... Kf3 {[%clk 0:00:32.5]} 72. Rf8+ {[%clk 0:01:02.4]}
72... Ke4 {[%clk 0:00:34.1]} 73. Re8+ {[%clk 0:01:03.6]} 73... Kf3 {[%clk
0:00:35.8]} 74. Rf8+ {[%clk 0:01:04.6]} 74... Ke4 {[%clk 0:00:37.1]} 75. Re8+
{[%clk 0:01:05.1]} 75... Kf3 {[%clk 0:00:38.5]} 1/2-1/2

[Event "*** Titled Tuesday 3|2 Blitz"]
[Site "Chess.com"]
[Date "2016.03.01"]
[Round "5"]
[White "GeorgMeier"]
[Black "BahadirOzen"]
[Result "1-0"]
[WhiteElo "2752"]
[BlackElo "2552"]
[TimeControl "180+2"]
[EndTime "12:35:15 PST"]
[Termination "GeorgMeier won by resignation"]

1. e4 {[%clk 0:03:01.9]} 1... d6 {[%clk 0:02:58.9]} 2. d4 {[%clk 0:03:03]} 2...
Nf6 {[%clk 0:03:00.3]} 3. Nc3 {[%clk 0:03:03.9]} 3... e5 {[%clk 0:03:02]} 4.
dxe5 {[%clk 0:03:04.7]} 4... dxe5 {[%clk 0:03:03.9]} 5. Qxd8+ {[%clk 0:03:06.3]}
5... Kxd8 {[%clk 0:03:05.8]} 6. Bc4 {[%clk 0:03:06.1]} 6... Ke8 {[%clk
0:03:07.3]} 7. Nf3 {[%clk 0:03:04.2]} 7... Bd6 {[%clk 0:03:07.6]} 8. Be3 {[%clk
0:03:04]} 8... a6 {[%clk 0:03:00]} 9. O-O-O {[%clk 0:02:50.4]} 9... Nbd7 {[%clk
0:03:00.3]} 10. a4 {[%clk 0:02:11.3]} 10... b6 {[%clk 0:02:45]} 11. Ng5 {[%clk
0:02:11.3]} 11... Rf8 {[%clk 0:02:45.4]} 12. f3 {[%clk 0:02:12.4]} 12... Bb7
{[%clk 0:02:34.7]} 13. Rhe1 {[%clk 0:02:08.4]} 13... h6 {[%clk 0:02:25.6]} 14.
Nh3 {[%clk 0:02:09.5]} 14... Ke7 {[%clk 0:02:12.5]} 15. Nf2 {[%clk 0:02:06.3]}
15... Bc5 {[%clk 0:02:03.3]} 16. Nd3 {[%clk 0:01:10]} 16... Bxe3+ {[%clk
0:02:04]} 17. Rxe3 {[%clk 0:01:11.9]} 17... c6 {[%clk 0:01:52.8]} 18. Ree1
{[%clk 0:01:08.2]} 18... a5 {[%clk 0:01:20.5]} 19. f4 {[%clk 0:00:58.9]} 19...
Ba6 {[%clk 0:01:16.3]} 20. fxe5 {[%clk 0:00:25.7]} 20... Ng4 {[%clk 0:01:17.2]}
21. Bxa6 {[%clk 0:00:17.5]} 21... Rxa6 {[%clk 0:01:19.1]} 22. Ne2 {[%clk
0:00:18.9]} 22... Ngxe5 {[%clk 0:01:11.8]} 23. Nd4 {[%clk 0:00:20]} 23... g6
{[%clk 0:01:06.2]} 24. b3 {[%clk 0:00:19.8]} 24... Raa8 {[%clk 0:00:58.5]} 25.
Nf3 {[%clk 0:00:20.9]} 25... Nxf3 {[%clk 0:00:33]} 26. gxf3 {[%clk 0:00:22.8]}
26... g5 {[%clk 0:00:34.9]} 27. Kd2 {[%clk 0:00:23.7]} 27... Rad8 {[%clk
0:00:33.8]} 28. Ke3 {[%clk 0:00:24.2]} 28... Nf6 {[%clk 0:00:27.9]} 29. h4
{[%clk 0:00:21.5]} 29... gxh4 {[%clk 0:00:24.5]} 30. Rh1 {[%clk 0:00:21.5]}
30... Rg8 {[%clk 0:00:21.8]} 31. Rxh4 {[%clk 0:00:19.9]} 31... Rg2 {[%clk
0:00:22.5]} 32. Rd2 {[%clk 0:00:18.5]} 32... Rxd2 {[%clk 0:00:20.4]} 33. Kxd2
{[%clk 0:00:20.4]} 33... h5 {[%clk 0:00:18.6]} 34. Ke3 {[%clk 0:00:21.6]} 34...
b5 {[%clk 0:00:12]} 35. Nf4 {[%clk 0:00:16.4]} 35... bxa4 {[%clk 0:00:12.3]} 36.
bxa4 {[%clk 0:00:18.3]} 36... Rh8 {[%clk 0:00:10.1]} 37. Kd4 {[%clk 0:00:15.1]}
37... Rb8 {[%clk 0:00:10]} 38. e5 {[%clk 0:00:10.8]} 38... Rb4+ {[%clk
0:00:10.2]} 39. c4 {[%clk 0:00:12]} 39... Nd7 {[%clk 0:00:07.2]} 40. Rxh5 {[%clk
0:00:09.9]} 40... Rxa4 {[%clk 0:00:08.5]} 41. e6 {[%clk 0:00:10.1]} 41... fxe6
{[%clk 0:00:03.4]} 42. Nd3 {[%clk 0:00:11.3]} 42... Ra1 {[%clk 0:00:03.5]} 43.
Rh7+ {[%clk 0:00:10.9]} 43... Kd6 {[%clk 0:00:04.5]} 44. c5+ {[%clk 0:00:11.7]}
44... Kc7 {[%clk 0:00:06.2]} 45. Kc3 {[%clk 0:00:07.2]} 45... Rd1 {[%clk
0:00:06.6]} 46. Kc2 {[%clk 0:00:06.7]} 46... Rxd3 {[%clk 0:00:02.5]} 47. Kxd3
{[%clk 0:00:08.6]} 47... a4 {[%clk 0:00:04.4]} 48. Kd4 {[%clk 0:00:09.7]} 48...
a3 {[%clk 0:00:05.6]} 49. Rh1 {[%clk 0:00:10.7]} 49... e5+ {[%clk 0:00:07.5]}
50. Kc4 {[%clk 0:00:11.7]} 50... Nf6 {[%clk 0:00:08.5]} 51. Ra1 {[%clk
0:00:12.7]} 51... Nd5 {[%clk 0:00:10]} 52. Rxa3 {[%clk 0:00:13.9]} 52... Kd7
{[%clk 0:00:11.9]} 53. Ra6 {[%clk 0:00:14.2]} 53... Ne3+ {[%clk 0:00:12.3]} 54.
Kd3 {[%clk 0:00:15.2]} 54... Nd5 {[%clk 0:00:10]} 55. Ke4 {[%clk 0:00:16.5]}
55... Nb4 {[%clk 0:00:02.8]} 56. Rb6 {[%clk 0:00:17.8]} 56... Na2 {[%clk
0:00:03.4]} 57. Kxe5 {[%clk 0:00:18.6]} 57... Nc3 {[%clk 0:00:03.7]} 58. Rb7+
{[%clk 0:00:19.7]} 58... Kc8 {[%clk 0:00:05.3]} 59. Rf7 {[%clk 0:00:20]} 59...
Na4 {[%clk 0:00:06.8]} 60. Kd6 {[%clk 0:00:20.6]} 1-0

[Event "*** Titled Tuesday 3|2 Blitz"]
[Site "Chess.com"]
[Date "2016.03.01"]
[Round "5"]
[White "E-Shaposhnikov"]
[Black "Blitzstream"]
[Result "0-1"]
[WhiteElo "2473"]
[BlackElo "2463"]
[TimeControl "180+2"]
[EndTime "12:35:18 PST"]
[Termination "Blitzstream won by resignation"]

1. Nf3 {[%clk 0:03:01.9]} 1... d5 {[%clk 0:02:56.6]} 2. d4 {[%clk 0:03:02.6]}
2... Nf6 {[%clk 0:02:56.6]} 3. c4 {[%clk 0:03:02.1]} 3... c6 {[%clk 0:02:57.8]}
4. Nc3 {[%clk 0:02:59.2]} 4... g6 {[%clk 0:02:58.6]} 5. e4 {[%clk 0:02:59.7]}
5... dxe4 {[%clk 0:02:58]} 6. Ne5 {[%clk 0:02:42.8]} 6... Nbd7 {[%clk
0:02:58.4]} 7. Nxd7 {[%clk 0:02:35.2]} 7... Bxd7 {[%clk 0:02:58.8]} 8. Be2
{[%clk 0:02:36.7]} 8... Bg7 {[%clk 0:02:59.5]} 9. Be3 {[%clk 0:02:38.2]} 9...
O-O {[%clk 0:03:00.2]} 10. Qc2 {[%clk 0:02:39.8]} 10... Qa5 {[%clk 0:02:45.8]}
11. a3 {[%clk 0:02:35.9]} 11... e5 {[%clk 0:02:29.3]} 12. b4 {[%clk 0:02:27.6]}
12... Qc7 {[%clk 0:02:29.3]} 13. Rd1 {[%clk 0:02:18.5]} 13... exd4 {[%clk
0:02:21.5]} 14. Bxd4 {[%clk 0:02:20.4]} 14... Rad8 {[%clk 0:02:16.4]} 15. h3
{[%clk 0:02:04.9]} 15... Rfe8 {[%clk 0:01:58.4]} 16. O-O {[%clk 0:02:00.6]}
16... Bf5 {[%clk 0:01:54.9]} 17. Qb2 {[%clk 0:01:53.8]} 17... Rxd4 {[%clk
0:00:23]} 18. Rxd4 {[%clk 0:01:53]} 18... Nh5 {[%clk 0:00:24.1]} 19. Rdd1 {[%clk
0:01:42.6]} 19... Nf4 {[%clk 0:00:24.3]} 20. Rfe1 {[%clk 0:01:37.5]} 20... e3
{[%clk 0:00:20.6]} 21. Bf1 {[%clk 0:00:59.1]} 21... exf2+ {[%clk 0:00:21.1]} 22.
Qxf2 {[%clk 0:00:58.8]} 22... Rxe1 {[%clk 0:00:18.9]} 23. Qxe1 {[%clk
0:00:59.5]} 23... Ne6 {[%clk 0:00:14.2]} 24. Ne2 {[%clk 0:00:46.1]} 24... Qe5
{[%clk 0:00:10.1]} 25. Ng3 {[%clk 0:00:39.2]} 25... Qxe1 {[%clk 0:00:05.5]} 26.
Rxe1 {[%clk 0:00:41.1]} 26... Bc2 {[%clk 0:00:06.9]} 27. Ne4 {[%clk 0:00:35.3]}
27... Be5 {[%clk 0:00:04.9]} 28. c5 {[%clk 0:00:31.1]} 28... Kf8 {[%clk
0:00:05.6]} 29. Nd6 {[%clk 0:00:31.3]} 29... Bxd6 {[%clk 0:00:07]} 30. cxd6
{[%clk 0:00:31.9]} 30... Bb3 {[%clk 0:00:06.8]} 31. b5 {[%clk 0:00:27.8]} 31...
c5 {[%clk 0:00:07.4]} 32. Rb1 {[%clk 0:00:16.6]} 32... Nd4 {[%clk 0:00:08.6]}
33. Re1 {[%clk 0:00:13.9]} 33... Be6 {[%clk 0:00:09.4]} 34. a4 {[%clk
0:00:10.8]} 34... Ke8 {[%clk 0:00:10.6]} 35. a5 {[%clk 0:00:10.9]} 35... Kd7
{[%clk 0:00:11.8]} 36. Kf2 {[%clk 0:00:10.8]} 36... Kxd6 {[%clk 0:00:13.1]} 37.
Rc1 {[%clk 0:00:10.9]} 37... Bd5 {[%clk 0:00:13.4]} 38. g4 {[%clk 0:00:10.7]}
38... Ke5 {[%clk 0:00:14]} 39. Ke3 {[%clk 0:00:12.2]} 39... Nb3 {[%clk
0:00:14.6]} 40. Re1 {[%clk 0:00:12.4]} 40... Nxa5 {[%clk 0:00:15.4]} 41. Kd3+
{[%clk 0:00:12.8]} 41... Kd6 {[%clk 0:00:16.8]} 42. Kc3 {[%clk 0:00:14.3]} 42...
Nb3 {[%clk 0:00:15.4]} 43. Re8 {[%clk 0:00:14.4]} 43... Nd4 {[%clk 0:00:16.2]}
44. Ra8 {[%clk 0:00:15.8]} 44... Kc7 {[%clk 0:00:13.9]} 45. Rxa7 {[%clk
0:00:16.1]} 45... Kb6 {[%clk 0:00:15.3]} 46. Ra8 {[%clk 0:00:17]} 46... Nxb5+
{[%clk 0:00:16.8]} 47. Bxb5 {[%clk 0:00:18.6]} 47... Kxb5 {[%clk 0:00:18.7]} 48.
Rh8 {[%clk 0:00:20.2]} 48... Ka4 {[%clk 0:00:16.3]} 49. Rxh7 {[%clk 0:00:21]}
49... b5 {[%clk 0:00:18]} 50. h4 {[%clk 0:00:22.6]} 50... b4+ {[%clk 0:00:19.4]}
51. Kd2 {[%clk 0:00:21.1]} 51... c4 {[%clk 0:00:20.7]} 52. Rh8 {[%clk
0:00:22.7]} 52... c3+ {[%clk 0:00:22.1]} 53. Kd3 {[%clk 0:00:22.5]} 53... Be6
{[%clk 0:00:23]} 54. h5 {[%clk 0:00:22.9]} 54... gxh5 {[%clk 0:00:22.6]} 55.
gxh5 {[%clk 0:00:24.3]} 55... Bf5+ {[%clk 0:00:24.1]} 56. Kc4 {[%clk 0:00:25.6]}
56... Be6+ {[%clk 0:00:24]} 57. Kd3 {[%clk 0:00:25.8]} 57... Bf5+ {[%clk
0:00:25.3]} 58. Kc4 {[%clk 0:00:26.3]} 58... Be6+ {[%clk 0:00:26.6]} 59. Kd4
{[%clk 0:00:26.3]} 59... c2 {[%clk 0:00:26.3]} 60. Ra8+ {[%clk 0:00:24]} 60...
Kb3 {[%clk 0:00:27.7]} 61. Ra1 {[%clk 0:00:24.1]} 61... Kb2 {[%clk 0:00:29]} 62.
Rf1 {[%clk 0:00:23.9]} 62... c1=Q {[%clk 0:00:29.5]} 63. Rxc1 {[%clk 0:00:24.8]}
63... Kxc1 {[%clk 0:00:31.1]} 0-1